fUSD/lending_fUSD_20240215
["ID","MTS","AMOUNT","RATE_DAILY","PERIOD"]
[314126102,1708008660815,-500.0,0.00039726,7]
[314126103,1708008660831,-500.0,0.00039726,7]
[314126104,1708008660846,-500.0,0.00039726,7]
[314126105,1708008660862,-500.0,0.00039726,7]
[314126106,1708008660877,-500.0,0.00039726,7]
[314126107,1708008660892,-500.0,0.00039726,7]
[314126108,1708008661013,-500.0,0.00039726,7]
[314126109,1708008661026,-500.0,0.00039726,7]
[314126110,1708008661036,-430.75682701,0.00039726,7]
[314126111,1708008661046,-500.0,0.00039726,7]
[314126112,1708008661055,-500.0,0.00039726,7]
[314126113,1708008661064,-222.39316006,0.00039726,7]
[314126114,1708008661074,-654.54,0.00039726,7]
[314126115,1708008661083,-574.20118815,0.00039726,7]
[314126116,1708008661093,-500.0,0.00039726,7]
[314126117,1708008661102,-500.0,0.00039726,7]
[314126118,1708008661111,-500.0,0.00039726,7]
[314126119,1708008661121,-500.0,0.00039726,7]
[314126120,1708008661130,-500.0,0.00039726,7]
[314126121,1708008661140,-500.0,0.00039726,7]
[314126122,1708008661150,-500.0,0.00039726,2]
[314126123,1708008661160,-811.99,0.00039726,7]
[314126124,1708008661170,-234.25,0.00039726,7]
[314126125,1708008661179,-500.0,0.00039726,7]
[314126126,1708008661188,-500.0,0.00039726,7]
[314126127,1708008661200,-500.0,0.00039726,7]
[314126128,1708008661211,-500.0,0.00039726,7]
[314126129,1708008661220,-810.5,0.00039726,7]
[314126130,1708008661230,-500.0,0.00039726,7]
[314126131,1708008661240,-488.85437777,0.00039726,7]
[314126132,1708008661249,-500.0,0.00039726,7]
[314126133,1708008661258,-500.0,0.00039726,7]
[314126134,1708008661268,-500.0,0.00039726,7]
[314126135,1708008661278,-500.0,0.00039726,7]
[314126136,1708008661287,-500.0,0.00039726,7]
[314126137,1708008661296,-500.0,0.00039726,7]
[314126138,1708008661306,-500.0,0.00039726,7]
[314126139,1708008661315,-933.57,0.00039726,7]
[314126140,1708008661325,-988.97,0.00039726,7]
[314126141,1708008661334,-500.0,0.00039726,7]
[314126142,1708008661344,-580.3037854,0.00039726,7]
[314126143,1708008661354,-500.0,0.00039726,7]
[314126144,1708008661364,-500.0,0.00039726,7]
[314126145,1708008661375,-500.0,0.00039726,7]
[314126146,1708008661385,-500.0,0.00039726,7]
[314126147,1708008661395,-500.0,0.00039726,7]
[314126148,1708008661406,-568.08,0.00039726,7]
[314126149,1708008661415,-166.54354739,0.00039726,7]
[314126150,1708008661425,-185.46,0.00039726,7]
[314126151,1708008661434,-500.0,0.00039726,7]
[314126152,1708008661444,-500.0,0.00039726,7]
[314126153,1708008661454,-500.0,0.00039726,7]
[314126154,1708008661463,-500.0,0.00039726,7]
[314126155,1708008661472,-2563.58,0.00039726,7]
[314126156,1708008661481,-500.0,0.00039726,7]
[314126157,1708008661491,-500.0,0.00039726,7]
[314126158,1708008661500,-312.63,0.00039726,7]
[314126159,1708008661510,-500.0,0.00039726,7]
[314126160,1708008661519,-304.13,0.00039726,7]
[314126161,1708008661528,-500.0,0.00039726,7]
[314126162,1708008661538,-500.0,0.00039726,7]
[314126163,1708008661547,-500.0,0.00039726,7]
[314126164,1708008661556,-500.0,0.00039726,7]
[314126165,1708008661566,-500.0,0.00039726,7]
[314126166,1708008661575,-501.97,0.00039726,7]
[314126167,1708008661584,-500.0,0.00039726,7]
[314126168,1708008661592,-500.0,0.00039726,7]
[314126169,1708008661602,-10000.0,0.00039726,3]
[314126170,1708008661611,-500.0,0.00039726,7]
[314126171,1708008661620,-500.0,0.00039726,7]
[314126172,1708008661629,-500.0,0.00039726,7]
[314126173,1708008661639,-500.0,0.00039726,7]
[314126174,1708008661649,-500.0,0.00039726,7]
[314126175,1708008661658,-500.0,0.00039726,7]
[314126176,1708008661667,-500.0,0.00039726,7]
[314126177,1708008661677,-1563.21,0.00039726,7]
[314126178,1708008661686,-500.0,0.00039726,7]
[314126179,1708008661696,-26.03078033,0.00039726,7]
[314126180,1708008661978,-792.13921967,0.00039726,7]
[314126181,1708008661988,-516.09298155,0.00039726,7]
[314126182,1708008661997,-500.0,0.00039726,7]
[314126183,1708008662093,-500.0,0.00039726,7]
[314126184,1708008662102,-318.01779878,0.00039726,7]
[314126185,1708008662114,-2717.49220122,0.00039726,7]
[314126186,1708008662123,-360.17607738,0.00039726,7]
[314126187,1708008662134,-139.82392262,0.00039726,7]
[314126188,1708008662143,-500.0,0.00039726,7]
[314126189,1708008662152,-500.0,0.00039726,7]
[314126190,1708008662161,-500.0,0.00039726,7]
[314126191,1708008662170,-500.0,0.00039726,7]
[314126192,1708008662180,-500.0,0.00039726,7]
[314126193,1708008662191,-637.18292518,0.00039726,7]
[314126194,1708008662203,-500.0,0.00039726,7]
[314126195,1708008662211,-500.0,0.00039726,7]
[314126196,1708008662220,-500.0,0.00039726,7]
[314126197,1708008662229,-500.0,0.00039726,7]
[314126198,1708008662238,-1521.38,0.00039726,7]
[314126199,1708008662247,-500.0,0.00039726,7]
[314126200,1708008662257,-1138.14,0.00039726,7]
[314126201,1708008662267,-500.0,0.00039726,7]
[314126202,1708008662277,-188.07112494,0.00039726,7]
[314126203,1708008662289,-311.92887506,0.00039726,7]
[314126204,1708008662298,-500.0,0.00039726,7]
[314126205,1708008662308,-500.0,0.00039726,7]
[314126206,1708008662318,-500.0,0.00039726,7]
[314126207,1708008662328,-500.0,0.00039726,7]
[314126208,1708008662337,-500.0,0.00039726,7]
[314126209,1708008662347,-529.1,0.00039726,7]
[314126210,1708008662356,-508.14999002,0.00039726,7]
[314126211,1708008662366,-444.90498844,0.00039726,7]
[314126212,1708008662375,-500.0,0.00039726,7]
[314126213,1708008662384,-500.0,0.00039726,7]
[314126214,1708008662394,-500.0,0.00039726,7]
[314126215,1708008662403,-500.0,0.00039726,7]
[314126216,1708008662412,-500.0,0.00039726,7]
[314126217,1708008662421,-500.0,0.00039726,7]
[314126218,1708008662430,-19654.87674562,0.00039726,7]
[314126219,1708008662442,-8188.58995723,0.00039726,7]
[314126220,1708008662457,-6985.44573727,0.00039726,7]
[314126221,1708008662469,-1286.87207086,0.00039726,7]
[314126222,1708008662482,-4610.59729814,0.00039726,7]
[314126223,1708008662500,-500.0,0.00039452,2]
[314126224,1708008662510,-6122.90819088,0.00039726,7]
[314126225,1708008662520,-500.0,0.00039726,7]
[314126226,1708008662529,-500.0,0.00039726,7]
[314126227,1708008662539,-368.78403471,0.00039726,7]
[314126228,1708008662549,-500.0,0.00039726,7]
[314126229,1708008662559,-500.0,0.00039726,7]
[314126230,1708008662568,-1073.73,0.00039726,7]
[314126231,1708008662578,-500.0,0.00039726,7]
[314126232,1708008662587,-500.0,0.00039726,7]
[314126233,1708008662597,-500.0,0.00039726,7]
[314126234,1708008662606,-408.23,0.00039726,7]
[314126235,1708008662615,-500.0,0.00039726,7]
[314126236,1708008662624,-500.0,0.00039726,7]
[314126237,1708008662633,-500.0,0.00039726,7]
[314126238,1708008662642,-500.0,0.00039726,7]
[314126239,1708008662652,-500.0,0.00039726,7]
[314126240,1708008662661,-500.0,0.00039726,7]
[314126241,1708008662670,-945.39,0.00039726,7]
[314126242,1708008662679,-500.0,0.00039726,7]
[314126243,1708008662688,-950.47,0.00039726,7]
[314126244,1708008662697,-500.0,0.00039726,7]
[314126245,1708008662710,-500.0,0.00039726,7]
[314126246,1708008662720,-500.0,0.00039726,7]
[314126247,1708008662729,-1881.47,0.00039726,7]
[314126248,1708008662739,-500.0,0.00039726,7]
[314126249,1708008662748,-511.14,0.00039726,7]
[314126250,1708008662757,-500.0,0.00039726,7]
[314126251,1708008662767,-500.0,0.00039726,7]
[314126252,1708008662776,-500.0,0.00039726,7]
[314126253,1708008662786,-500.0,0.00039726,7]
[314126254,1708008662795,-533.983118,0.00039726,7]
[314126255,1708008662805,-3028.52,0.00039726,7]
[314126256,1708008662815,-3220.71,0.00039726,7]
[314126257,1708008662824,-500.0,0.00039726,7]
[314126258,1708008662833,-1662.43,0.00039726,7]
[314126259,1708008662842,-500.0,0.00039726,7]
[314126260,1708008662852,-614.49,0.00039726,7]
[314126261,1708008662861,-500.0,0.00039726,7]
[314126262,1708008662870,-500.0,0.00039726,7]
[314126263,1708008662880,-342.94973849,0.00039726,7]
[314126264,1708008662894,-157.05026151,0.00039726,7]
[314126265,1708008662903,-500.0,0.00039726,7]
[314126266,1708008662913,-500.0,0.00039726,7]
[314126267,1708008662922,-500.0,0.00039726,7]
[314126268,1708008662931,-500.0,0.00039726,7]
[314126269,1708008662940,-500.0,0.00039726,7]
[314126270,1708008662950,-500.0,0.00039726,7]
[314126271,1708008662960,-2544.5,0.00039726,7]
[314126272,1708008662969,-500.0,0.00039726,7]
[314126273,1708008662979,-500.0,0.00039726,7]
[314126274,1708008662989,-500.0,0.00039726,7]
[314126275,1708008662998,-654.84,0.00039726,7]
[314126276,1708008663008,-500.0,0.00039726,7]
[314126277,1708008663018,-500.0,0.00039726,7]
[314126278,1708008663028,-500.0,0.00039726,7]
[314126279,1708008663038,-1032.26,0.00039726,7]
[314126280,1708008663049,-500.0,0.00039726,7]
[314126281,1708008663059,-500.0,0.00039726,7]
[314126282,1708008663068,-1172.12,0.00039726,7]
[314126283,1708008663078,-500.0,0.00039726,7]
[314126284,1708008663086,-1764.36,0.00039726,7]
[314126285,1708008663096,-500.0,0.00039726,7]
[314126286,1708008663106,-500.0,0.00039726,7]
[314126287,1708008663115,-500.0,0.00039726,7]
[314126288,1708008663124,-500.0,0.00039726,7]
[314126289,1708008663133,-500.0,0.00039726,7]
[314126290,1708008663142,-1763.06,0.00039726,7]
[314126291,1708008663151,-528.07846744,0.00039726,7]
[314126292,1708008663160,-656.53,0.00039726,7]
[314126293,1708008663169,-725.96,0.00039726,7]
[314126294,1708008663179,-500.0,0.00039726,7]
[314126295,1708008663188,-500.0,0.00039726,7]
[314126296,1708008663198,-500.0,0.00039726,7]
[314126297,1708008663210,-1213.8,0.00039726,7]
[314126298,1708008663299,-506.83357885,0.00039726,7]
[314126299,1708008663309,-500.0,0.00039726,7]
[314126300,1708008663318,-500.0,0.00039726,7]
[314126301,1708008663328,-500.0,0.00039726,7]
[314126302,1708008663338,-567.74,0.00039726,7]
[314126303,1708008663347,-500.0,0.00039726,7]
[314126304,1708008663356,-1924.35,0.00039726,7]
[314126305,1708008663366,-500.0,0.00039726,7]
[314126306,1708008663376,-500.0,0.00039726,7]
[314126307,1708008663386,-500.0,0.00039726,7]
[314126308,1708008663395,-500.0,0.00039726,7]
[314126309,1708008663405,-500.0,0.00039726,7]
[314126310,1708008663415,-1973.42,0.00039726,7]
[314126311,1708008663424,-500.0,0.00039726,7]
[314126312,1708008663434,-565.72,0.00039726,7]
[314126313,1708008663443,-500.0,0.00039726,7]
[314126314,1708008663454,-511.86,0.00039726,7]
[314126315,1708008663463,-1949.22,0.00039726,7]
[314126316,1708008663472,-500.0,0.00039726,7]
[314126317,1708008663481,-1000.0,0.00039726,7]
[314126318,1708008663491,-768.14,0.00039726,7]
[314126319,1708008663500,-628.04,0.00039726,7]
[314126320,1708008663509,-1380.21,0.00039726,7]
[314126321,1708008663519,-500.0,0.00039726,7]
[314126322,1708008663528,-527.02311833,0.00039726,7]
[314126323,1708008663537,-500.0,0.00039726,7]
[314126324,1708008663546,-500.0,0.00039726,7]
[314126325,1708008663556,-500.0,0.00039726,7]
[314126326,1708008663565,-500.0,0.00039726,7]
[314126327,1708008663574,-500.0,0.00039726,7]
[314126328,1708008663584,-500.0,0.00039726,7]
[314126329,1708008663593,-514.82813539,0.00039726,7]
[314126330,1708008663602,-263.83481127,0.00039726,5]
[314126331,1708008663611,-2834.69,0.00039726,7]
[314126332,1708008663621,-411.60850664,0.00039726,7]
[314126333,1708008663630,-500.0,0.00039726,7]
[314126334,1708008663639,-521.46840385,0.00039726,7]
[314126335,1708008663648,-500.0,0.00039726,7]
[314126336,1708008663657,-500.0,0.00039726,7]
[314126337,1708008663666,-1284.4,0.00039726,7]
[314126338,1708008663675,-500.0,0.00039726,7]
[314126339,1708008663684,-548.6292419,0.00039726,7]
[314126340,1708008663693,-500.0,0.00039726,7]
[314126341,1708008663703,-171.40501213,0.00039726,7]
[314126342,1708008663712,-1757.36,0.00039726,7]
[314126343,1708008663722,-648.31,0.00039726,7]
[314126344,1708008663731,-500.0,0.00039726,7]
[314126345,1708008663740,-500.0,0.00039726,7]
[314126346,1708008663750,-500.0,0.00039726,5]
[314126347,1708008663759,-500.0,0.00039726,7]
[314126348,1708008663768,-500.0,0.00039726,7]
[314126349,1708008663778,-597.42509435,0.00039726,7]
[314126350,1708008663787,-500.0,0.00039726,7]
[314126351,1708008663796,-500.0,0.00039726,7]
[314126352,1708008663806,-500.0,0.00039726,7]
[314126353,1708008663814,-4988.11,0.00039726,7]
[314126354,1708008663824,-500.0,0.00039726,7]
[314126355,1708008663833,-500.0,0.00039726,7]
[314126356,1708008663843,-4183.33,0.00039726,7]
[314126357,1708008663854,-500.0,0.00039726,7]
[314126358,1708008663864,-516.8,0.00039726,7]
[314126359,1708008663875,-597.76,0.00039726,7]
[314126360,1708008663885,-500.0,0.00039726,7]
[314126361,1708008663896,-500.0,0.00039726,7]
[314126362,1708008663906,-500.0,0.00039726,7]
[314126363,1708008663916,-386.5493029,0.00039726,7]
[314126364,1708008663925,-1508.49,0.00039726,7]
[314126365,1708008663936,-500.0,0.00039726,7]
[314126366,1708008663946,-500.0,0.00039726,7]
[314126367,1708008663957,-368.11301001,0.00039726,7]
[314126368,1708008663967,-609.02,0.00039726,7]
[314126369,1708008663978,-500.0,0.00039726,7]
[314126370,1708008663987,-500.0,0.00039726,7]
[314126371,1708008663996,-500.0,0.00039726,7]
[314126372,1708008664006,-500.0,0.00039726,7]
[314126373,1708008664017,-500.0,0.00039726,7]
[314126374,1708008664028,-500.0,0.00039726,7]
[314126375,1708008664037,-500.0,0.00039726,7]
[314126376,1708008664047,-500.0,0.00039726,7]
[314126377,1708008664056,-500.0,0.00039726,7]
[314126378,1708008664065,-500.0,0.00039726,7]
[314126379,1708008664074,-500.0,0.00039726,7]
[314126380,1708008664083,-545.65699778,0.00039726,7]
[314126381,1708008664092,-570.0475101,0.00039726,7]
[314126382,1708008664101,-500.0,0.00039726,7]
[314126383,1708008664111,-500.0,0.00039726,7]
[314126384,1708008664120,-154.555508,0.00039726,14]
[314126385,1708008664129,-154.0,0.00039729,7]
[314126386,1708008664138,-150.0,0.00039769,2]
[314126387,1708008664147,-462.0,0.0003979,2]
[314126388,1708008664157,-1000.0,0.00039799,2]
[314126389,1708008664166,-1000.0,0.00039799,2]
[314126390,1708008664175,-10000.0,0.000398,5]
[314126391,1708008664184,-1390.6,0.000398,7]
[314126392,1708008664197,-200.0,0.000398,14]
[314126393,1708008664210,-3000.0,0.000398,41]
[314126394,1708008664220,-1983.0,0.000398,7]
[314126395,1708008664230,-249.28,0.000398,2]
[314126396,1708008664242,-616.0,0.00039808,2]
[314126397,1708008664253,-3000.0,0.0003981,41]
[314126398,1708008664264,-3000.0,0.0003982,41]
[314126399,1708008664273,-3000.0,0.0003983,41]
[314126400,1708008664283,-500.0,0.00039831,7]
[314126401,1708008664293,-3000.0,0.0003984,41]
[314126402,1708008664302,-150.0,0.0003984,2]
[314126403,1708008664312,-3000.0,0.0003985,41]
[314126404,1708008664321,-153.46372747,0.00039853,6]
[314126405,1708008664330,-200.0,0.00039857,7]
[314126406,1708008664340,-200.0,0.00039857,7]
[314126407,1708008664349,-200.0,0.00039857,7]
[314126408,1708008664359,-200.0,0.00039857,7]
[314126409,1708008664369,-200.0,0.00039857,7]
[314126410,1708008664378,-200.0,0.00039857,7]
[314126411,1708008664387,-200.0,0.00039857,7]
[314126412,1708008664397,-200.0,0.00039857,7]
[314126413,1708008664406,-200.0,0.00039857,7]
[314126414,1708008664415,-200.0,0.00039857,7]
[314126415,1708008664424,-200.0,0.00039857,7]
[314126416,1708008664433,-200.0,0.00039857,7]
[314126417,1708008664443,-200.0,0.00039857,7]
[314126418,1708008664454,-200.0,0.00039857,7]
[314126419,1708008664464,-3000.0,0.0003986,41]
[314126420,1708008664474,-151.0,0.00039863,7]
[314126421,1708008664484,-151.0,0.00039863,7]
[314126422,1708008664493,-151.0,0.00039863,7]
[314126423,1708008664503,-151.0,0.00039863,7]
[314126424,1708008664512,-151.0,0.00039863,7]
[314126425,1708008664522,-10776.47,0.00039863,7]
[314126426,1708008664532,-10776.47,0.00039863,7]
[314126427,1708008664542,-356.58296802,0.00039864,2]
[314126428,1708008664551,-150.0,0.00039866,2]
[314126429,1708008664560,-150.0,0.00039866,2]
[314126430,1708008664570,-174725.24527558,0.00039867,3]
[314126431,1708008664585,-91856.06031445,0.00039867,3]
[314126432,1708008664965,-3316.12830692,0.00037899,2]
[314126433,1708008664974,-87.11169308,0.0003862,2]
[314126434,1708008664986,-62.88830692,0.0003862,2]
[314126435,1708008664997,-150.0,0.00039443,2]
[314126436,1708008665006,-494.85273259,0.00039452,7]
[314126437,1708008665019,-13.91393981,0.00039452,7]
[314126438,1708008665029,-500.0,0.00039452,7]
[314126439,1708008665039,-500.0,0.00039452,7]
[314126440,1708008665049,-150.0,0.00039537,2]
[314126441,1708008665059,-293.81088075,0.00039726,7]
[314126442,1708008665072,-206.18911925,0.00039726,7]
[314126443,1708008665082,-1113.76088225,0.00039867,3]
[314126444,1708008665094,-2416.96942512,0.00039867,3]
[314126445,1708008665106,-349.49914978,0.00039867,3]
[314126446,1708008665122,-39235.79671764,0.00039867,3]
[314126447,1708008665134,-173151.34851269,0.00039867,3]
[314126448,1708008665147,-954.27029255,0.00039867,3]
[314126449,1708008665159,-10774.9999974,0.00039867,3]
[314126450,1708008665859,-22394.24226071,0.00039867,3]
[314126451,1708008665871,-13140.25,0.00039867,3]
[314126452,1708008665883,-20722.86036609,0.00039867,3]
[314126453,1708008665895,-977.52,0.00039867,3]
[314126454,1708008665912,-37341.60094725,0.00039867,3]
[314126455,1708008665924,-3450.19122688,0.00039867,3]
[314126456,1708008665936,-55487.02643712,0.00039867,3]
[314126457,1708008665954,-14615.15521645,0.00039867,3]
[314126458,1708008665964,-12569.42687998,0.00039867,3]
[314126459,1708008665974,-151.0,0.00039867,7]
[314126460,1708008665984,-151.0,0.00039867,7]
[314126461,1708008665993,-203.422396,0.00039867,7]
[314126462,1708008666003,-178.2,0.00039867,7]
[314126463,1708008666014,-178.2,0.00039867,7]
[314126464,1708008666024,-373.273337,0.00039867,2]
[314126465,1708008666034,-373.273337,0.00039867,2]
[314126466,1708008666044,-151.0,0.00039867,7]
[314126467,1708008666054,-151.0,0.00039867,7]
[314126468,1708008666064,-161.848028,0.00039867,7]
[314126469,1708008666074,-161.848028,0.00039867,7]
[314126470,1708008666084,-151.0,0.00039867,7]
[314126471,1708008666093,-156.728962,0.00039867,7]
[314126472,1708008666103,-1011.703502,0.00039867,7]
[314126473,1708008666113,-1011.703502,0.00039867,7]
[314126474,1708008666124,-227.5546,0.00039867,7]
[314126475,1708008666133,-227.5546,0.00039867,7]
[314126476,1708008666143,-151.0,0.00039867,7]
[314126477,1708008666153,-151.0,0.00039867,7]
[314126478,1708008666162,-151.0,0.00039867,7]
[314126479,1708008666172,-151.0,0.00039867,7]
[314126480,1708008666182,-243.391961,0.00039867,7]
[314126481,1708008666191,-243.391961,0.00039867,7]
[314126482,1708008666205,-151.0,0.00039867,7]
[314126483,1708008666214,-189.952172,0.00039867,7]
[314126484,1708008666225,-173.340659,0.00039867,7]
[314126485,1708008666235,-151.0,0.00039867,7]
[314126486,1708008666246,-151.0,0.00039867,7]
[314126487,1708008666256,-200.0,0.0003987,7]
[314126488,1708008666265,-200.0,0.0003987,7]
[314126489,1708008666277,-216.78704613,0.0003987,7]
[314126490,1708008666289,-200.0,0.0003987,7]
[314126491,1708008666299,-200.0,0.0003987,7]
[314126492,1708008666309,-200.0,0.0003987,7]
[314126493,1708008666319,-3000.0,0.0003987,41]
[314126494,1708008666330,-356.58296802,0.00039877,2]
[314126495,1708008666340,-150.0,0.00039879,2]
[314126496,1708008666349,-150.0,0.00039879,2]
[314126497,1708008666359,-460302.4694975,0.0003988,2]
[314126498,1708008666368,-111373.61580227,0.0003988,2]
[314126499,1708008666380,-290412.97454497,0.0003988,2]
[314126500,1708008666390,-151.0,0.0003988,7]
[314126501,1708008666399,-151.0,0.0003988,7]
[314126502,1708008666409,-178.2,0.0003988,7]
[314126503,1708008666420,-178.2,0.0003988,7]
[314126504,1708008666429,-373.273337,0.0003988,2]
[314126505,1708008666439,-373.273337,0.0003988,2]
[314126506,1708008666448,-151.0,0.0003988,7]
[314126507,1708008666460,-151.0,0.0003988,7]
[314126508,1708008666470,-161.848028,0.0003988,7]
[314126509,1708008666479,-161.848028,0.0003988,7]
[314126510,1708008666488,-151.0,0.0003988,7]
[314126511,1708008666498,-3000.0,0.0003988,41]
[314126512,1708008666508,-1011.703502,0.0003988,7]
[314126513,1708008666518,-1011.703502,0.0003988,7]
[314126514,1708008666528,-227.5546,0.0003988,7]
[314126515,1708008666538,-227.5546,0.0003988,7]
[314126516,1708008666549,-151.0,0.0003988,7]
[314126517,1708008666558,-151.0,0.0003988,7]
[314126518,1708008666568,-151.0,0.0003988,7]
[314126519,1708008666578,-151.0,0.0003988,7]
[314126520,1708008666588,-243.391961,0.0003988,7]
[314126521,1708008666598,-243.391961,0.0003988,7]
[314126522,1708008666609,-151.0,0.0003988,7]
[314126523,1708008666618,-151.0,0.0003988,7]
[314126524,1708008666627,-200.048778,0.0003988,7]
[314126525,1708008666637,-3000.0,0.0003989,41]
[314126526,1708008666646,-332.0,0.0003989,2]
[314126527,1708008666656,-356.58296802,0.00039897,2]
[314126528,1708008666665,-394.46023975,0.000399,5]
[314126529,1708008666675,-335.5,0.000399,7]
[314126530,1708008666684,-156.43,0.000399,7]
[314126531,1708008666694,-342862.02619643,0.000399,2]
[314126532,1708008666703,-151.0,0.000399,7]
[314126533,1708008666712,-151.0,0.000399,7]
[314126534,1708008666721,-178.2,0.000399,7]
[314126535,1708008666730,-178.2,0.000399,7]
[314126536,1708008666740,-373.273337,0.000399,2]
[314126537,1708008666751,-373.273337,0.000399,2]
[314126538,1708008666760,-151.0,0.000399,7]
[314126539,1708008666769,-153.99,0.000399,3]
[314126540,1708008666778,-153.99,0.000399,3]
[314126541,1708008666787,-153.99,0.000399,3]
[314126542,1708008666796,-153.99,0.000399,3]
[314126543,1708008666806,-151.0,0.000399,7]
[314126544,1708008666815,-161.848028,0.000399,7]
[314126545,1708008666824,-161.848025,0.000399,7]
[314126546,1708008666834,-151.0,0.000399,7]
[314126547,1708008666844,-7701.37078645,0.000399,2]
[314126548,1708008666853,-3000.0,0.000399,41]
[314126549,1708008666863,-532.32,0.000399,3]
[314126550,1708008666878,-532.32,0.000399,3]
[314126551,1708008666889,-532.32,0.000399,3]
[314126552,1708008666906,-532.32,0.000399,3]
[314126553,1708008666915,-532.32,0.000399,3]
[314126554,1708008666942,-532.32,0.000399,3]
[314126555,1708008666967,-532.32,0.000399,3]
[314126556,1708008666980,-532.32,0.000399,3]
[314126557,1708008666989,-532.32,0.000399,3]
[314126558,1708008666999,-532.32,0.000399,3]
[314126559,1708008667008,-532.32,0.000399,3]
[314126560,1708008667020,-532.32,0.000399,3]
[314126561,1708008667039,-532.32,0.000399,3]
[314126562,1708008667048,-532.32,0.000399,3]
[314126563,1708008667075,-532.32,0.000399,3]
[314126564,1708008667090,-532.32,0.000399,3]
[314126565,1708008667111,-532.32,0.000399,3]
[314126566,1708008667135,-532.32,0.000399,3]
[314126567,1708008667151,-532.32,0.000399,3]
[314126568,1708008667161,-532.32,0.000399,3]
[314126569,1708008667171,-351.2897,0.000399,2]
[314126570,1708008667185,-1011.703502,0.000399,7]
[314126571,1708008667231,-1011.703502,0.000399,7]
[314126572,1708008667249,-227.5546,0.000399,7]
[314126573,1708008667263,-227.5546,0.000399,7]
[314126574,1708008667276,-151.0,0.000399,7]
[314126575,1708008667303,-151.0,0.000399,7]
[314126576,1708008667328,-151.0,0.000399,7]
[314126577,1708008667352,-254.341798,0.000399,7]
[314126578,1708008667365,-243.391961,0.000399,7]
[314126579,1708008667376,-243.391961,0.000399,7]
[314126580,1708008667387,-150.0,0.00039901,2]
[314126581,1708008667398,-3000.0,0.0003991,41]
[314126582,1708008667408,-3330.70438481,0.00039914,2]
[314126583,1708008667419,-3000.0,0.0003992,41]
[314126584,1708008667429,-152.34,0.00039922,2]
[314126585,1708008667440,-333.0,0.00039929,2]
[314126586,1708008667450,-333.0,0.00039929,2]
[314126587,1708008667462,-3000.0,0.0003993,41]
[314126588,1708008667474,-3000.0,0.0003994,41]
[314126589,1708008667488,-3000.0,0.0003995,41]
[314126590,1708008667499,-159.65,0.00039954,2]
[314126591,1708008667510,-3000.0,0.0003996,41]
[314126592,1708008667521,-500.0,0.00039966,2]
[314126593,1708008667532,-500.0,0.00039966,2]
[314126594,1708008667543,-500.0,0.00039966,2]
[314126595,1708008667555,-500.0,0.00039966,2]
[314126596,1708008667565,-500.0,0.00039966,2]
[314126597,1708008667576,-500.0,0.00039966,2]
[314126598,1708008667587,-500.0,0.00039966,2]
[314126599,1708008667598,-500.0,0.00039966,2]
[314126600,1708008667609,-500.0,0.00039966,2]
[314126601,1708008667621,-500.0,0.00039966,2]